Workbook

Sheet ميزانية لـ 18 فترة زمنية
B1: ميزانية الشركة
G2: تاريخ البدء | H2: 2011-01-01 | I2: طول الفترة (بالأيام) | K2: 14 | L2: تاريخ الانتهاء | M2: =TEXT(T5,"yyy/mm/dd") -> 2012/08/26
C5: =UPPER(TEXT(H2,"[$-10C0000]dd-mmm")) -> 01-يناير | D5: =UPPER(TEXT(C5+DayInterval,"dd-mmm")) -> 15-يناير | E5: 29-يناير | F5: 12-فبراير | G5: 26-فبراير | H5: 11-مارس | I5: 25-مارس | J5: 08-أبريل | K5: 22-أبريل | L5: 06-مايو | M5: 20-مايو | N5: 03-يونيو | O5: 17-يونيو | P5: 01-يوليه | Q5: 15-يوليه | R5: 29-يوليه | S5: 12-أغسطس | T5: 26-أغسطس | U5: الإجمالي | V5: الاتجاه
B6: صافي الدخل | C6: =IncomeTable[[#Totals],[Week 1]]-ExpensesTable[[#Totals],[Week 1]] -> 1750.00 ر.س.‏ | D6: =IncomeTable[[#Totals],[Week 2]]-ExpensesTable[[#Totals],[Week 2]] -> 2236.00 ر.س.‏ | E6: =IncomeTable[[#Totals],[Week 3]]-ExpensesTable[[#Totals],[Week 3]] -> 1442.00 ر.س.‏ | F6: =IncomeTable[[#Totals],[Week 4]]-ExpensesTable[[#Totals],[Week 4]] -> 2253.00 ر.س.‏ | G6: =IncomeTable[[#Totals],[Week 5]]-ExpensesTable[[#Totals],[Week 5]] -> 1533.00 ر.س.‏ | H6: =IncomeTable[[#Totals],[Week 6]]-ExpensesTable[[#Totals],[Week 6]] -> 1086.00 ر.س.‏ | I6: =IncomeTable[[#Totals],[Week 7]]-ExpensesTable[[#Totals],[Week 7]] -> 1594.00 ر.س.‏ | J6: =IncomeTable[[#Totals],[Week 8]]-ExpensesTable[[#Totals],[Week 8]] -> 0.00 ر.س.‏ | K6: =IncomeTable[[#Totals],[Week 9]]-ExpensesTable[[#Totals],[Week 9]] -> 0.00 ر.س.‏ | L6: =IncomeTable[[#Totals],[Week 10]]-ExpensesTable[[#Totals],[Week 10]] -> 0.00 ر.س.‏ | M6: =IncomeTable[[#Totals],[Week 11]]-ExpensesTable[[#Totals],[Week 11]] -> 0.00 ر.س.‏ | N6: =IncomeTable[[#Totals],[Week 12]]-ExpensesTable[[#Totals],[Week 12]] -> 0.00 ر.س.‏ | O6: =IncomeTable[[#Totals],[Week 13]]-ExpensesTable[[#Totals],[Week 13]] -> 0.00 ر.س.‏ | P6: =IncomeTable[[#Totals],[Week 14]]-ExpensesTable[[#Totals],[Week 14]] -> 0.00 ر.س.‏ | Q6: =IncomeTable[[#Totals],[Week 15]]-ExpensesTable[[#Totals],[Week 15]] -> 0.00 ر.س.‏ | R6: =IncomeTable[[#Totals],[Week 16]]-ExpensesTable[[#Totals],[Week 16]] -> 0.00 ر.س.‏ | S6: =IncomeTable[[#Totals],[Week 17]]-ExpensesTable[[#Totals],[Week 17]] -> 0.00 ر.س.‏ | T6: =IncomeTable[[#Totals],[Week 18]]-ExpensesTable[[#Totals],[Week 18]] -> 0.00 ر.س.‏ | U6: =IncomeTable[[#Totals],[Total]]-ExpensesTable[[#Totals],[Total]] -> 11894.00 ر.س.‏
A8: الدخل
B9: عنصر الدخل 1 | C9: 3000.00 ر.س.‏ | D9: 3500.00 ر.س.‏ | E9: 2978.00 ر.س.‏ | F9: 3384.00 ر.س.‏ | G9: 2858.00 ر.س.‏ | H9: 2809.00 ر.س.‏ | I9: 3220.00 ر.س.‏ | U9: =SUM(IncomeTable[[#This Row],[Week 1]:[Week 18]]) -> 21749.00 ر.س.‏
B10: عنصر الدخل 2 | C10: 1150.00 | D10: 1200.00 | E10: 1144.00 | F10: 1400.00 | G10: 1358.00 | H10: 1154.00 | I10: 1245.00 | U10: =SUM(IncomeTable[[#This Row],[Week 1]:[Week 18]]) -> 8651.00
B11: عنصر الدخل 3 | C11: 300.00 | D11: 350.00 | E11: 392.00 | F11: 326.00 | G11: 381.00 | H11: 364.00 | I11: 315.00 | U11: =SUM(IncomeTable[[#This Row],[Week 1]:[Week 18]]) -> 2428.00
B12: الدخل الإجمالي | C12: =SUBTOTAL(109,IncomeTable[Week 1]) -> 4450.00 ر.س.‏ | D12: =SUBTOTAL(109,IncomeTable[Week 2]) -> 5050.00 ر.س.‏ | E12: =SUBTOTAL(109,IncomeTable[Week 3]) -> 4514.00 ر.س.‏ | F12: =SUBTOTAL(109,IncomeTable[Week 4]) -> 5110.00 ر.س.‏ | G12: =SUBTOTAL(109,IncomeTable[Week 5]) -> 4597.00 ر.س.‏ | H12: =SUBTOTAL(109,IncomeTable[Week 6]) -> 4327.00 ر.س.‏ | I12: =SUBTOTAL(109,IncomeTable[Week 7]) -> 4780.00 ر.س.‏ | J12: =SUBTOTAL(109,IncomeTable[Week 8]) -> 0.00 ر.س.‏ | K12: =SUBTOTAL(109,IncomeTable[Week 9]) -> 0.00 ر.س.‏ | L12: =SUBTOTAL(109,IncomeTable[Week 10]) -> 0.00 ر.س.‏ | M12: =SUBTOTAL(109,IncomeTable[Week 11]) -> 0.00 ر.س.‏ | N12: =SUBTOTAL(109,IncomeTable[Week 12]) -> 0.00 ر.س.‏ | O12: =SUBTOTAL(109,IncomeTable[Week 13]) -> 0.00 ر.س.‏ | P12: =SUBTOTAL(109,IncomeTable[Week 14]) -> 0.00 ر.س.‏ | Q12: =SUBTOTAL(109,IncomeTable[Week 15]) -> 0.00 ر.س.‏ | R12: =SUBTOTAL(109,IncomeTable[Week 16]) -> 0.00 ر.س.‏ | S12: =SUBTOTAL(109,IncomeTable[Week 17]) -> 0.00 ر.س.‏ | T12: =SUBTOTAL(109,IncomeTable[Week 18]) -> 0.00 ر.س.‏ | U12: =SUBTOTAL(109,IncomeTable[Total]) -> 32828.00 ر.س.‏
A14: المصاريف
B15: الأجور | C15: 1500.00 ر.س.‏ | D15: 1577.00 ر.س.‏ | E15: 1823.00 ر.س.‏ | F15: 1529.00 ر.س.‏ | G15: 1759.00 ر.س.‏ | H15: 1947.00 ر.س.‏ | I15: 1875.00 ر.س.‏ | U15: =SUM(ExpensesTable[[#This Row],[Week 1]:[Week 18]]) -> 12010.00 ر.س.‏
B16: الإيجار | C16: 1000.00 | D16: 1000.00 | E16: 1000.00 | F16: 1000.00 | G16: 1000.00 | H16: 1000.00 | I16: 1000.00 | U16: =SUM(ExpensesTable[[#This Row],[Week 1]:[Week 18]]) -> 7000.00
B17: الكهرباء | C17: 40.00 | D17: 43.00 | E17: 40.00 | F17: 42.00 | G17: 45.00 | H17: 40.00 | I17: 42.00 | U17: =SUM(ExpensesTable[[#This Row],[Week 1]:[Week 18]]) -> 292.00
B18: الهاتف | C18: 12.00 | D18: 11.00 | E18: 13.00 | F18: 14.00 | G18: 11.00 | H18: 15.00 | I18: 15.00 | U18: =SUM(ExpensesTable[[#This Row],[Week 1]:[Week 18]]) -> 91.00
B19: الإنترنت | C19: 15.00 | D19: 15.00 | E19: 15.00 | F19: 15.00 | G19: 15.00 | H19: 15.00 | I19: 15.00 | U19: =SUM(ExpensesTable[[#This Row],[Week 1]:[Week 18]]) -> 105.00
B20: المياه | C20: 11.00 | D20: 10.00 | E20: 13.00 | F20: 10.00 | G20: 13.00 | H20: 10.00 | I20: 12.00 | U20: =SUM(ExpensesTable[[#This Row],[Week 1]:[Week 18]]) -> 79.00
B21: الغاز | C21: 23.00 | D21: 27.00 | E21: 26.00 | F21: 27.00 | G21: 22.00 | H21: 29.00 | I21: 21.00 | U21: =SUM(ExpensesTable[[#This Row],[Week 1]:[Week 18]]) -> 175.00
B22: إزالة المخلفات | C22: 4.00 | D22: 4.00 | E22: 4.00 | F22: 4.00 | G22: 4.00 | H22: 4.00 | I22: 4.00 | U22: =SUM(ExpensesTable[[#This Row],[Week 1]:[Week 18]]) -> 28.00
B23: كبلات التلفاز | C23: 10.00 | D23: 10.00 | E23: 10.00 | F23: 10.00 | G23: 10.00 | H23: 10.00 | I23: 10.00 | U23: =SUM(ExpensesTable[[#This Row],[Week 1]:[Week 18]]) -> 70.00
B24: مستلزمات المكتب | C24: 25.00 | D24: 57.00 | E24: 68.00 | F24: 146.00 | G24: 125.00 | H24: 111.00 | I24: 132.00 | U24: =SUM(ExpensesTable[[#This Row],[Week 1]:[Week 18]]) -> 664.00
B25: التأمين | C25: 60.00 | D25: 60.00 | E25: 60.00 | F25: 60.00 | G25: 60.00 | H25: 60.00 | I25: 60.00 | U25: =SUM(ExpensesTable[[#This Row],[Week 1]:[Week 18]]) -> 420.00
B26: إجمالي المصاريف | C26: =SUBTOTAL(109,ExpensesTable[Week 1]) -> 2700.00 ر.س.‏ | D26: =SUBTOTAL(109,ExpensesTable[Week 2]) -> 2814.00 ر.س.‏ | E26: =SUBTOTAL(109,ExpensesTable[Week 3]) -> 3072.00 ر.س.‏ | F26: =SUBTOTAL(109,ExpensesTable[Week 4]) -> 2857.00 ر.س.‏ | G26: =SUBTOTAL(109,ExpensesTable[Week 5]) -> 3064.00 ر.س.‏ | H26: =SUBTOTAL(109,ExpensesTable[Week 6]) -> 3241.00 ر.س.‏ | I26: =SUBTOTAL(109,ExpensesTable[Week 7]) -> 3186.00 ر.س.‏ | J26: =SUBTOTAL(109,ExpensesTable[Week 8]) -> 0.00 ر.س.‏ | K26: =SUBTOTAL(109,ExpensesTable[Week 9]) -> 0.00 ر.س.‏ | L26: =SUBTOTAL(109,ExpensesTable[Week 10]) -> 0.00 ر.س.‏ | M26: =SUBTOTAL(109,ExpensesTable[Week 11]) -> 0.00 ر.س.‏ | N26: =SUBTOTAL(109,ExpensesTable[Week 12]) -> 0.00 ر.س.‏ | O26: =SUBTOTAL(109,ExpensesTable[Week 13]) -> 0.00 ر.س.‏ | P26: =SUBTOTAL(109,ExpensesTable[Week 14]) -> 0.00 ر.س.‏ | Q26: =SUBTOTAL(109,ExpensesTable[Week 15]) -> 0.00 ر.س.‏ | R26: =SUBTOTAL(109,ExpensesTable[Week 16]) -> 0.00 ر.س.‏ | S26: =SUBTOTAL(109,ExpensesTable[Week 17]) -> 0.00 ر.س.‏ | T26: =SUBTOTAL(109,ExpensesTable[Week 18]) -> 0.00 ر.س.‏ | U26: =SUBTOTAL(109,ExpensesTable[Total]) -> 20934.00 ر.س.‏
